bitfinex/quotes_ETHUSD_20240713
["timestamp","ask_amount","ask_price","bid_price","bid_amount"]
[1720890730578,0.48928854,3159.5,3159.4,2.2635]
[1720890731306,1.58624097,3159.5,3159.4,2.2635]
[1720890733019,0.48928854,3159.5,3159.4,2.2635]
[1720890733399,1.58619485,3159.5,3159.4,2.2635]
[1720890733602,0.48928854,3159.5,3159.4,2.2635]
[1720890733796,1.58617356,3159.5,3159.4,2.2635]
[1720890734889,1.58617356,3159.5,3159.4,2.48985]
[1720890735310,1.25488502,3159.5,3159.4,2.48985]
[1720890736939,0.158,3159.5,3159.4,2.48985]
[1720890737288,1.25476744,3159.5,3159.4,2.48985]
[1720890740335,0.158,3159.5,3159.4,2.48985]
[1720890740812,1.25473495,3159.5,3159.4,2.48985]
[1720890743027,1.25479604,3159.5,3159.4,2.48985]
[1720890743727,1.25482763,3159.5,3159.4,2.48985]
[1720890746966,0.158,3159.5,3159.4,2.48985]
[1720890747972,1.25480748,3159.5,3159.4,2.48985]
[1720890750369,0.158,3159.5,3159.4,2.48985]
[1720890750873,1.25480883,3159.5,3159.4,2.48985]
[1720890751041,1.25480883,3159.5,3159.4,2.2635]
[1720890752937,1.25480883,3159.5,3159.2,2.3791]
[1720890753139,1.09689699,3159.4,3159.2,2.3791]
[1720890753374,1.09689699,3159.3,3159.2,2.3791]
[1720890753534,1.09692392,3159.3,3159.2,2.3791]
[1720890754841,1.09695117,3159.3,3159.2,2.3791]
[1720890757001,1.09696093,3159.3,3159.2,2.3791]
[1720890760257,0.48934274,3159.5,3159.2,2.3791]
[1720890760486,1.09697521,3159.4,3159.2,2.3791]
[1720890760657,0.48934274,3159.5,3159.2,2.3791]
[1720890760861,1.09697482,3159.4,3159.2,2.3791]
[1720890761086,1.09697482,3159.3,3158.9,9.11399234]
[1720890761289,1.09697482,3159.4,3158.9,9.11399234]
[1720890762108,1.09697482,3159.4,3158.9,2.3791]
[1720890762960,1.09697321,3159.3,3158.9,2.3791]
[1720890763203,1.09697321,3159.2,3158.9,2.3791]
[1720890763509,1.09697321,3159.4,3158.9,2.3791]
[1720890763710,1.25563796,3159.3,3158.9,2.3791]
[1720890763866,1.09700637,3159.2,3158.9,2.3791]
[1720890764205,1.09700637,3159.1,3158.9,2.3791]
[1720890764402,1.09700637,3159.2,3158.9,2.3791]
[1720890764580,1.09700637,3159.1,3158.9,2.3791]
[1720890764781,1.09700637,3159.0,3158.9,2.3791]
[1720890764980,1.09700637,3159.4,3158.9,2.3791]
[1720890765200,1.09700637,3159.3,3158.9,2.3791]
[1720890765505,1.09700637,3159.2,3158.9,2.3791]
[1720890765798,1.09700637,3159.1,3158.9,2.3791]
[1720890765998,1.09700637,3159.0,3158.9,2.3791]
[1720890766978,1.09697277,3159.0,3158.9,2.3791]
[1720890769106,1.08027277,3159.0,3158.9,2.61701]
[1720890770206,0.48934274,3159.5,3158.9,2.61701]
[1720890770378,0.48934274,3159.5,3158.9,2.3791]
[1720890773869,1.028,3159.4,3158.9,2.3791]
[1720890774072,1.0111,3159.4,3158.9,2.3791]
[1720890774405,0.55,3159.3,3158.6,2.3187]
[1720890775009,2.8284,3159.3,3158.6,2.3187]
[1720890775217,2.8284,3159.3,3158.6,3.22405923]
[1720890778983,1.09705953,3159.2,3158.6,3.22405923]
[1720890779207,1.09705953,3159.1,3158.6,3.22405923]
[1720890779395,1.09705953,3159.2,3158.6,3.22405923]
[1720890779598,1.09705953,3159.1,3158.6,3.22405923]
[1720890779810,1.09705953,3159.2,3158.6,3.22405923]
[1720890780107,1.09705953,3159.1,3158.6,3.22405923]
[1720890780413,1.09706154,3159.0,3158.6,2.3187]
[1720890780607,2.8284,3159.3,3158.6,2.3187]
[1720890780827,1.09706624,3159.2,3158.6,2.3187]
[1720890780973,1.09706624,3159.1,3158.6,2.3187]
[1720890781317,1.09706624,3159.0,3158.6,2.3187]
[1720890781486,1.09706624,3158.9,3158.6,2.55057]
[1720890781687,1.09706624,3158.8,3158.6,2.55057]
[1720890781905,1.09706624,3158.7,3158.6,2.55057]
[1720890782712,1.09706651,3158.7,3158.6,2.55057]
[1720890785923,0.48934274,3159.5,3158.6,2.55057]
[1720890786107,1.09698893,3159.4,3158.6,2.55057]
[1720890786449,1.09698893,3159.3,3158.6,2.55057]
[1720890786584,1.09698893,3159.2,3158.6,2.55057]
[1720890786785,1.09698893,3159.1,3158.6,2.55057]
[1720890787123,1.09698893,3159.0,3158.6,2.55057]
[1720890787328,1.09698893,3159.4,3158.7,0.357857]
[1720890787500,1.09698893,3159.3,3158.7,0.357857]
[1720890787695,1.09698893,3159.2,3158.7,0.357857]
[1720890787895,1.09698893,3159.1,3158.7,0.357857]
[1720890788122,1.09698893,3159.0,3158.7,0.357857]
[1720890788315,1.09698893,3159.4,3158.8,0.2908427]
[1720890788504,1.09698893,3159.3,3158.8,2.3187]
[1720890788703,1.09698893,3159.2,3158.8,2.3187]
[1720890788954,1.09698893,3159.1,3158.8,2.3187]
[1720890789097,1.09698893,3159.0,3158.8,2.3187]
[1720890789301,0.48934274,3159.5,3158.8,2.3187]
[1720890789486,1.09696246,3159.4,3158.8,2.3187]
[1720890789820,1.09696246,3159.3,3158.8,2.5863557]
[1720890790006,1.09696246,3159.2,3158.8,2.5863557]
[1720890790217,1.09696246,3159.1,3158.8,2.5863557]
[1720890790522,0.48934274,3159.5,3158.8,2.5863557]
[1720890790523,1.09696246,3159.0,3158.8,2.5863557]
[1720890790722,1.09696246,3159.4,3158.8,2.5863557]
[1720890790896,1.09696246,3159.3,3158.8,2.5863557]
[1720890791102,1.09696246,3159.2,3158.8,2.5863557]
[1720890791284,1.09696246,3159.1,3158.8,2.5863557]
[1720890791489,1.09696246,3159.0,3158.8,2.5863557]
[1720890791725,1.09696246,3159.4,3158.9,0.25863557]
[1720890791928,1.09699503,3159.3,3158.8,2.3187]
[1720890792128,1.09699503,3159.2,3158.8,2.3187]
[1720890792286,1.09699503,3159.1,3158.8,2.3187]
[1720890792630,0.48934274,3159.5,3158.8,2.3187]
[1720890792631,1.09699467,3159.0,3158.8,2.3187]
[1720890792848,1.51734274,3159.5,3158.8,2.3187]
[1720890792849,1.09699467,3158.9,3158.8,2.3187]
[1720890793047,0.48934274,3159.5,3158.8,2.55057]
[1720890793354,1.09696931,3159.4,3158.8,2.55057]
[1720890793506,1.09696931,3159.3,3158.8,2.55057]
[1720890793711,1.09696931,3159.2,3158.8,2.55057]
[1720890793963,1.09696931,3159.1,3158.8,2.55057]
[1720890794139,1.09696931,3159.0,3158.8,2.55057]
[1720890794341,1.09696931,3159.4,3158.8,2.55057]
[1720890794613,1.09696931,3159.3,3158.8,2.3187]
[1720890794929,1.09696931,3159.2,3158.8,2.3187]
[1720890795251,0.99578096,3159.1,3158.8,2.3187]
[1720890795613,0.48934274,3159.5,3158.8,2.3187]
[1720890796555,2.3931,3159.4,3158.8,2.3187]
[1720890796762,3.05852869,3159.4,3158.8,2.3187]
[1720890796923,6.83037283,3159.4,3158.8,2.3187]
[1720890799056,0.55,3159.3,3158.8,2.3187]
[1720890800631,3.29384414,3159.3,3158.8,2.3187]
[1720890801071,0.55,3159.3,3158.8,2.3187]
[1720890802152,0.55,3159.3,3158.3,2.3743]
[1720890802333,3.29384414,3159.3,3158.5,2.3743]
[1720890802656,0.55,3159.3,3158.5,2.3743]
[1720890802814,3.29530384,3159.3,3158.5,2.3743]
[1720890803017,3.29532715,3159.3,3158.5,2.3743]
[1720890803219,3.29532715,3159.3,3158.5,2.74310192]
[1720890805043,0.55,3159.3,3158.5,2.74310192]
[1720890805259,1.09709423,3159.2,3158.5,2.74310192]
[1720890805467,1.09709423,3159.1,3158.5,2.74310192]
[1720890805758,1.09709423,3159.0,3158.5,2.74310192]
[1720890805961,0.55,3159.3,3158.6,0.40568212]
[1720890806169,1.09709671,3158.9,3158.5,2.3743]
[1720890806371,1.09709671,3158.8,3158.5,2.3743]
[1720890806577,1.09709671,3159.2,3158.5,2.3743]
[1720890806761,1.09709671,3158.7,3158.5,2.3743]
[1720890806963,3.29515613,3159.3,3158.6,0.36880192]
[1720890807159,1.09709599,3159.2,3158.5,2.3743]
[1720890807359,1.09709599,3159.1,3158.5,2.3743]
[1720890807665,1.09709599,3159.0,3158.5,2.3743]
[1720890807837,1.09709599,3158.9,3158.5,2.3743]
[1720890808162,1.09709599,3158.8,3158.5,2.3743]
[1720890808365,1.09709599,3158.7,3158.6,0.36880192]
[1720890812763,1.09708872,3158.7,3158.6,0.36880192]
[1720890813278,1.09708865,3158.7,3158.6,0.36880192]
[1720890814981,0.55,3159.3,3158.6,0.36880192]
[1720890815149,0.55,3159.3,3158.5,2.3743]
[1720890815150,1.0970895,3158.7,3158.5,2.3743]
[1720890815379,0.55,3159.3,3158.5,2.3743]
[1720890815679,1.09708949,3159.2,3158.5,2.3743]
[1720890815892,1.09708949,3159.1,3158.5,2.3743]
[1720890816069,1.09708949,3159.0,3158.5,2.3743]
[1720890816275,1.09709124,3158.9,3158.6,0.36880192]
[1720890816456,1.09709124,3158.8,3158.6,0.36880192]
[1720890816661,1.09709124,3159.2,3158.6,0.36880192]
[1720890816891,1.09709124,3159.1,3158.5,2.3743]
[1720890817098,1.09709124,3159.0,3158.5,2.3743]
[1720890817301,1.09709124,3158.9,3158.5,2.3743]
[1720890817472,1.09709124,3158.8,3158.5,2.3743]
[1720890817673,1.09709124,3158.7,3158.5,2.3743]
[1720890817892,3.29575235,3159.3,3158.6,0.36880192]
[1720890818193,1.09708735,3159.2,3158.5,2.3743]
[1720890818367,1.09708735,3159.1,3158.5,2.3743]
[1720890818573,1.09708735,3159.0,3158.5,2.3743]
[1720890818889,1.09708735,3158.9,3158.5,2.3743]
[1720890819088,1.09708735,3158.8,3158.5,2.3743]
[1720890819282,1.09708735,3158.7,3158.6,0.23743]
[1720890819794,1.09708624,3158.7,3158.6,0.23743]
[1720890823004,1.09706985,3158.7,3158.6,0.23743]
[1720890823471,1.09707343,3158.7,3158.6,0.23743]
[1720890825412,3.29630471,3159.3,3158.6,0.23743]
[1720890825413,0.55,3159.3,3158.6,0.23743]
[1720890825709,1.49418662,3159.2,3158.5,2.3743]
[1720890825900,1.09707662,3159.1,3158.5,2.3743]
[1720890826198,3.40267662,3159.0,3158.5,2.3743]
[1720890826512,1.09710113,3158.9,3158.3,2.3698]
[1720890826700,1.09710113,3158.8,3158.3,2.3698]
[1720890826871,1.09710113,3158.7,3158.4,0.91046923]
[1720890827075,1.09710113,3158.6,3158.4,0.91046923]
[1720890827267,1.09710113,3158.9,3158.4,0.91046923]
[1720890827469,1.09710113,3158.8,3158.4,0.91046923]
[1720890827667,1.09710113,3158.7,3158.4,0.91046923]
[1720890827905,1.09710113,3158.9,3158.5,0.32802692]
[1720890828208,1.09710113,3158.8,3158.4,0.91046923]
[1720890828367,1.09710113,3158.7,3158.4,0.91046923]
[1720890828568,1.09710113,3159.1,3158.4,0.91046923]
[1720890828768,1.09710113,3159.0,3158.4,0.91046923]
[1720890828986,1.09710113,3158.9,3158.4,0.91046923]
[1720890829169,1.09710113,3158.8,3158.4,0.91046923]
[1720890829370,1.09710113,3158.7,3158.5,0.32802692]
[1720890829570,1.09710113,3159.1,3158.5,0.32802692]
[1720890829868,1.09710506,3159.0,3158.3,2.3698]
[1720890830079,1.09710506,3158.9,3158.3,2.3698]
[1720890830291,1.09710506,3158.8,3158.3,2.3698]
[1720890830495,1.09710506,3158.7,3158.3,2.3698]
[1720890830705,1.09710506,3159.1,3158.4,0.91046923]
[1720890830883,1.09710506,3159.0,3158.4,0.91046923]
[1720890831094,1.09710506,3158.9,3158.4,0.91046923]
[1720890831322,1.09710506,3158.8,3158.4,0.91046923]
[1720890831532,1.09710506,3158.7,3158.4,0.91046923]
[1720890831686,1.09710506,3158.6,3158.5,0.32802692]
[1720890831887,1.09710506,3159.1,3158.5,0.32802692]
[1720890832114,1.09710506,3159.0,3158.3,2.3698]
[1720890832313,1.09710506,3158.9,3158.3,2.3698]
[1720890832513,1.09710506,3158.8,3158.3,2.3698]
[1720890832824,1.09710506,3158.7,3158.3,2.3698]
[1720890833332,1.09710506,3158.6,3158.3,2.3698]
[1720890833496,1.028,3158.8,3158.3,2.3698]
[1720890833683,1.09721705,3158.7,3158.3,2.3698]
[1720890833883,1.09721705,3158.6,3158.3,2.3698]
[1720890834114,1.09721705,3158.5,3158.3,2.3698]
[1720890834327,1.09721705,3158.9,3158.3,2.3698]
[1720890834631,0.33147675,3158.5,3158.3,2.3698]
[1720890834800,1.09721705,3158.4,3158.3,2.3698]
[1720890835124,1.09721705,3158.4,3158.0,2.4853]
[1720890835327,1.09721705,3158.3,3158.0,2.4853]
[1720890835625,1.09721705,3158.2,3158.0,2.4853]
[1720890835791,1.09721705,3158.4,3158.1,0.35133]
[1720890835990,1.0972185,3158.3,3158.1,0.35133]
[1720890836198,1.0972185,3158.2,3158.1,0.35133]
[1720890836542,1.09721829,3158.2,3158.1,0.35133]
[1720890839845,1.09722241,3158.2,3158.1,0.35133]
[1720890840742,1.09722241,3158.2,3158.1,2.83663]
[1720890842338,0.33147675,3158.5,3158.1,2.83663]
[1720890842546,1.09723283,3158.4,3158.1,2.4853]
[1720890842709,0.33147675,3158.5,3158.1,2.4853]
[1720890842906,1.09723247,3158.4,3158.1,2.4853]
[1720890843142,1.09723247,3158.3,3158.1,2.4853]
[1720890843328,1.09723247,3158.2,3158.1,2.4853]
[1720890843529,1.09723247,3158.2,3158.1,2.83663]
[1720890845545,0.33147675,3158.5,3158.1,1.37933]
[1720890845742,0.33147675,3158.5,3158.2,2.4853]
[1720890845947,1.09711641,3158.4,3158.2,2.4853]
[1720890846157,1.09711641,3158.3,3158.2,2.4853]
[1720890852233,1.09721035,3158.3,3158.2,2.4853]
[1720890852464,1.09721035,3158.3,3157.8,2.3702]
[1720890852680,0.33147675,3158.5,3157.9,1.56502]
[1720890852910,1.09721506,3158.4,3158.0,2.3702]
[1720890853187,1.09721506,3158.3,3158.0,2.3702]
[1720890853533,1.09721506,3158.2,3158.0,2.3702]
[1720890853778,0.33147675,3158.5,3158.1,0.693522]
[1720890853982,1.09715274,3158.4,3158.1,0.693522]
[1720890854137,1.09715274,3158.3,3158.1,0.693522]
[1720890854339,1.09715274,3158.4,3158.1,0.693522]
[1720890854577,1.09715274,3158.3,3158.1,0.693522]
[1720890854782,1.09715274,3158.9,3158.2,0.3063722]
[1720890854993,1.09715625,3158.8,3158.0,2.3702]
[1720890855160,1.09715625,3158.7,3158.0,2.3702]
[1720890855481,2.4335,3159.0,3158.0,2.3702]
[1720890855645,1.6471601,3158.9,3158.0,2.3702]
[1720890855843,1.0971601,3158.8,3158.0,2.3702]
[1720890856046,1.0971601,3158.7,3158.0,3.01002]
[1720890856359,1.0971601,3158.6,3158.0,3.01002]
[1720890856594,1.0971601,3158.8,3158.0,3.01002]
[1720890856750,1.0971601,3158.5,3158.0,3.01002]
[1720890857087,1.0971601,3158.4,3158.0,3.01002]
[1720890857244,1.0971601,3158.8,3158.1,0.703802]
[1720890857445,1.0971601,3158.7,3158.0,2.3702]
[1720890857669,1.0971601,3158.8,3158.0,2.3702]
[1720890857870,1.0971601,3158.7,3158.0,2.3702]
[1720890858070,1.0971601,3158.6,3158.0,2.3702]
[1720890858346,0.55,3158.9,3158.0,2.3702]
[1720890858347,1.0971601,3158.5,3158.0,2.3702]
[1720890858569,1.0971601,3158.9,3158.2,2.3702]
[1720890858903,2.4335,3159.0,3158.2,2.3702]
[1720890859181,1.09716534,3158.9,3158.2,2.3702]
[1720890859542,1.09716534,3158.8,3158.2,2.3702]
[1720890859741,1.09716534,3158.7,3158.2,2.3702]
[1720890859943,2.4335,3159.0,3158.2,2.671202]
[1720890859944,1.09716534,3158.6,3158.2,2.671202]
[1720890860181,1.09716534,3158.9,3158.2,2.671202]
[1720890860389,1.09716534,3158.8,3158.2,2.3702]
[1720890860592,1.09716534,3158.7,3158.2,2.3702]
[1720890860901,1.09716534,3158.6,3158.2,2.3702]
[1720890861209,1.09716534,3158.5,3158.2,2.3702]
[1720890861380,1.09716534,3158.4,3158.3,0.301002]
[1720890861553,1.09716534,3158.4,3158.2,2.3702]
[1720890861890,1.09716534,3158.3,3158.2,2.3702]
[1720890862404,1.09712239,3158.3,3158.2,2.3702]
[1720890862898,1.09714339,3158.9,3158.2,2.3702]
[1720890863191,1.09714339,3158.8,3158.2,2.3702]
[1720890863372,1.09714339,3158.7,3158.2,2.3702]
[1720890863690,1.09714339,3158.6,3158.2,2.3702]
[1720890863859,1.09714339,3158.9,3158.2,2.3702]
[1720890864059,1.09714339,3158.8,3158.2,2.3702]
[1720890864295,1.09714339,3158.7,3158.2,2.3702]
[1720890864457,1.09714339,3158.6,3158.2,2.3702]
[1720890864792,1.0971646,3158.5,3158.2,2.3702]
[1720890864992,1.0971646,3158.4,3158.2,2.60722]
[1720890865178,1.0971646,3158.3,3158.2,2.60722]
[1720890865696,1.09717361,3158.3,3158.2,2.60722]
[1720890868984,1.09717356,3158.3,3158.2,2.60722]
[1720890872214,0.3314735,3158.7,3158.2,2.60722]
[1720890872415,1.09717216,3158.6,3158.2,2.3702]
[1720890872723,0.3314735,3158.7,3158.2,2.3702]
[1720890872870,1.09717191,3158.6,3158.2,2.3702]
[1720890873071,1.09717191,3158.5,3158.2,2.3702]
[1720890873288,1.09717191,3158.4,3158.2,2.60722]
[1720890873471,1.09717191,3158.3,3158.2,2.60722]
[1720890874902,1.09720829,3158.6,3158.2,2.60722]
[1720890875119,1.09720829,3158.6,3158.2,2.3702]
[1720890875429,1.09719509,3158.5,3158.2,2.3702]
[1720890875629,0.3314735,3158.7,3158.2,2.3702]
[1720890875830,1.09719544,3158.4,3158.2,2.3702]
[1720890876038,1.09719544,3158.3,3158.2,2.3702]
[1720890876192,1.09719544,3158.6,3158.2,2.3702]
[1720890876395,1.09719544,3158.5,3158.2,2.3702]
[1720890876698,1.09719544,3158.4,3158.2,2.3702]
[1720890876900,1.09719544,3158.6,3158.2,2.3702]
[1720890877147,1.09719544,3158.5,3158.2,2.3702]
[1720890877290,1.09719544,3158.4,3158.2,2.3702]
[1720890877489,1.09719544,3158.3,3158.2,2.3702]
[1720890878903,0.3314735,3158.7,3158.2,2.3702]
[1720890879173,1.09721089,3158.3,3158.2,2.3702]
[1720890879940,1.42868856,3158.3,3158.2,2.3702]
[1720890880144,1.42868856,3158.3,3158.2,2.60722]
[1720890882402,1.42872149,3158.3,3158.2,2.60722]
[1720890882920,1.42872197,3158.3,3158.2,2.60722]
[1720890884953,1.42871374,3158.3,3158.2,2.3702]
[1720890885664,0.33147767,3158.3,3158.2,2.3702]
[1720890885865,1.4287448,3158.3,3158.2,2.3702]
[1720890887353,1.42866766,3158.3,3158.2,2.3702]
[1720890889165,0.33147767,3158.3,3158.2,2.3702]
[1720890889470,0.33147767,3158.3,3158.2,2.60722]
[1720890889932,1.42866659,3158.3,3158.2,2.60722]
[1720890892465,0.33147767,3158.3,3158.2,2.60722]
[1720890893267,1.42866413,3158.3,3158.2,2.60722]
[1720890893669,1.42866413,3158.3,3158.2,0.23702]
[1720890893844,1.42866413,3158.3,3157.9,3.474]
[1720890894189,1.09718646,3158.2,3157.9,3.474]
[1720890894477,1.09718646,3158.1,3157.9,3.474]
[1720890894764,1.09718646,3158.0,3157.9,3.474]
[1720890894950,0.33147767,3158.3,3157.9,6.474]
[1720890895151,1.0971933,3158.2,3157.9,6.474]
[1720890895354,1.0971933,3158.1,3157.9,6.474]
[1720890895559,1.0971933,3158.2,3157.9,6.474]
[1720890895761,0.33147767,3158.3,3157.9,6.474]
[1720890896055,1.0971914,3158.2,3157.9,6.474]
[1720890896264,1.0971914,3158.2,3158.0,0.6474]
[1720890899288,1.09717899,3158.1,3158.0,0.6474]
[1720890901638,0.33147767,3158.3,3158.0,0.6474]
[1720890901875,1.09718446,3158.2,3158.0,0.6474]
[1720890902186,1.09718332,3158.1,3158.0,0.6474]
[1720890905058,1.09718959,3158.1,3158.0,0.6474]
[1720890908452,1.09719275,3158.1,3158.0,0.6474]
[1720890908659,2.19437926,3158.1,3158.0,0.6474]
[1720890911898,2.19442911,3158.1,3158.0,0.6474]
[1720890912108,1.09719275,3158.1,3158.0,0.6474]
[1720890912559,2.19440982,3158.1,3158.0,0.6474]
[1720890914298,2.19443522,3158.1,3158.0,0.6474]
[1720890914969,1.09719275,3158.1,3158.0,0.6474]
[1720890915169,2.19444384,3158.1,3158.0,0.6474]
[1720890915692,1.09725109,3158.1,3158.0,0.6474]
[1720890918373,1.09717922,3158.1,3158.0,0.6474]
[1720890920110,1.09717922,3158.1,3158.0,3.0224]
[1720890920269,1.09717922,3158.1,3158.0,6.0224]
[1720890921806,1.09717588,3158.1,3158.0,6.0224]
[1720890922316,1.0971828,3158.6,3158.0,6.0224]
[1720890922518,0.33149508,3158.7,3158.0,6.0224]
[1720890922519,1.0971828,3158.5,3158.0,6.0224]
[1720890922815,1.0971828,3158.4,3158.1,0.70504]
[1720890922983,1.0971828,3158.6,3158.0,5.375]
[1720890923305,1.0971828,3158.5,3158.0,5.375]
[1720890923608,0.33149508,3158.7,3158.0,5.375]
[1720890923609,1.0971828,3158.4,3158.0,2.375]
[1720890923765,1.0971828,3158.6,3158.0,2.375]
[1720890923969,1.0971828,3158.5,3158.0,2.375]
[1720890924170,1.09723062,3158.4,3158.0,2.375]
[1720890924416,1.09723062,3158.3,3158.0,2.375]
[1720890924704,1.09723062,3158.6,3158.0,2.375]
[1720890924865,0.33149508,3158.7,3158.0,2.375]
[1720890925071,1.09723595,3158.6,3158.0,2.375]
[1720890925313,1.09723595,3158.5,3158.0,2.375]
[1720890925612,1.09723595,3158.4,3158.0,2.375]
[1720890925813,1.09723595,3158.6,3158.0,3.0153]
[1720890925964,1.09723595,3158.3,3158.0,3.0153]
[1720890926167,1.09723595,3158.2,3158.0,3.0153]
[1720890926402,1.09723595,3158.1,3158.0,3.0153]
[1720890926586,1.09723595,3158.1,3158.0,6.0153]
[1720890927808,1.09723595,3158.1,3158.0,7.0433]
[1720890928320,0.33149508,3158.7,3158.0,4.0433]
[1720890928621,1.09720011,3158.6,3158.0,3.403]
[1720890928912,1.09720011,3158.5,3158.0,3.403]
[1720890929234,1.09720011,3158.4,3158.0,3.403]
[1720890929504,1.09720011,3158.3,3158.0,3.403]
[1720890929707,1.09720011,3158.2,3158.0,3.403]
[1720890930008,1.09720011,3158.1,3158.0,3.7433]
[1720890931802,1.09716404,3158.1,3158.0,3.7433]
[1720890932124,0.33149508,3158.7,3158.0,3.7433]
[1720890932330,1.09716095,3158.6,3158.0,3.403]
[1720890932621,1.09716095,3158.5,3158.0,3.403]
[1720890932926,1.09716095,3158.4,3158.0,3.403]
[1720890933096,1.09716095,3158.6,3158.0,3.403]
[1720890933291,1.09716095,3158.5,3158.0,3.403]
[1720890933528,1.09716095,3158.6,3158.0,2.375]
[1720890933823,1.09716095,3158.5,3158.0,2.375]
[1720890934124,1.09716095,3158.4,3158.0,2.375]
[1720890934290,1.09716095,3158.6,3158.0,2.375]
[1720890934493,1.09716672,3158.5,3158.0,2.375]
[1720890934801,1.09716672,3158.4,3158.0,2.375]
[1720890934995,0.33149508,3158.7,3158.0,2.375]
[1720890935313,1.09716303,3158.6,3158.0,2.375]
[1720890935511,1.0971666,3158.5,3158.0,2.375]
[1720890935724,1.09716699,3158.4,3158.0,2.375]
[1720890936029,1.09716699,3158.3,3158.0,2.375]
[1720890936225,1.09716699,3158.2,3158.0,2.375]
[1720890936415,1.09716699,3158.1,3158.0,2.375]
[1720890936622,1.09716699,3158.6,3158.0,2.375]
[1720890936791,1.09716699,3158.5,3158.0,2.375]
[1720890937130,1.09716699,3158.4,3158.0,2.375]
[1720890937302,1.09716699,3158.6,3158.0,2.375]
[1720890937506,1.09716699,3158.5,3158.0,2.375]
[1720890938631,0.38837621,3158.6,3158.0,2.375]
[1720890938632,1.09716835,3158.4,3158.0,2.375]
[1720890938792,1.09716821,3158.4,3158.0,2.375]
[1720890938991,1.09716821,3158.3,3158.0,2.375]
[1720890939250,1.09716821,3158.6,3158.0,2.375]
[1720890939424,1.09716821,3158.2,3158.0,2.375]
[1720890939602,1.09716821,3158.1,3157.6,2.2601]
[1720890939904,1.09716821,3158.0,3157.5,6.73489234]
[1720890940103,1.09716821,3157.9,3157.5,6.73489234]
[1720890940302,1.09716821,3157.8,3157.5,6.73489234]
[1720890940503,1.09716821,3158.0,3157.4,2.2601]
[1720890940723,1.09716821,3157.9,3157.4,2.2601]
[1720890940906,1.09716821,3158.0,3157.4,2.2601]
[1720890941132,1.09716821,3157.9,3157.4,2.2601]
[1720890941306,1.09716821,3158.0,3157.4,5.2601]
[1720890941508,1.09716821,3158.0,3157.4,2.2601]
[1720890941708,2.2573,3157.9,3157.2,2.2601]
[1720890942019,1.09747138,3157.8,3157.2,2.2601]
[1720890942194,1.09750462,3157.7,3157.2,2.2601]
[1720890942394,2.5161776,3157.9,3157.2,2.2601]
[1720890942395,1.09750462,3157.6,3157.2,2.2601]
[1720890942597,1.09750462,3157.5,3157.2,2.2601]
[1720890942826,2.5161776,3157.9,3157.1,7.05239234]
[1720890942827,1.09750462,3157.4,3157.1,7.05239234]
[1720890943038,1.09750462,3157.8,3157.1,8.08039234]
[1720890943227,1.09750462,3157.7,3157.1,8.08039234]
[1720890943427,1.09750462,3157.6,3157.1,7.05239234]
[1720890943624,1.09750462,3157.5,3157.1,7.05239234]
[1720890943857,1.09750462,3157.7,3157.1,7.05239234]
[1720890944065,1.09750462,3157.6,3157.1,7.05239234]
[1720890944410,1.09754815,3157.5,3157.1,7.05239234]
[1720890944615,1.09754815,3157.4,3157.1,7.05239234]
[1720890944937,2.5161776,3157.9,3157.1,7.05239234]
[1720890945143,1.09753828,3157.3,3157.1,7.05239234]
[1720890945313,1.09753828,3157.2,3157.1,7.05239234]
[1720890945513,1.09753828,3157.7,3157.1,10.05239234]
[1720890945715,1.09753828,3157.6,3157.1,10.05239234]
[1720890945917,1.09753828,3157.8,3157.1,0.3175]
[1720890946115,1.43304871,3157.7,3157.1,0.3175]
[1720890946369,1.09756488,3157.6,3157.1,0.3175]
[1720890946518,1.09756488,3157.5,3157.1,0.3175]
[1720890946852,1.09756488,3157.4,3157.1,0.3175]
[1720890947019,1.09756488,3157.8,3157.1,0.3175]
[1720890947216,1.09756488,3157.7,3157.1,0.3175]
[1720890948317,1.09757159,3157.6,3157.1,0.3175]
[1720890948560,1.09757185,3157.5,3157.1,0.3175]
[1720890948718,1.09757185,3157.4,3157.0,0.1150608]
[1720890948916,2.2573,3157.3,3157.0,0.1150608]
[1720890949156,3.2853,3157.1,3157.0,0.1150608]
[1720890949456,3.35487185,3157.1,3157.0,0.1150608]
[1720890949765,7.93287185,3157.1,3157.0,0.1150608]
[1720890951556,7.93331273,3157.1,3157.0,0.1150608]
[1720890951738,8.88727842,3157.1,3157.0,0.1150608]
[1720890951939,8.88730256,3157.1,3157.0,0.1150608]
[1720890954727,8.88728542,3157.1,3157.0,0.1150608]
[1720890955561,9.21888799,3157.1,3157.0,0.1150608]
[1720890956762,8.19088799,3157.1,3157.0,0.1150608]
[1720890956924,9.21888799,3157.1,3157.0,0.1150608]
[1720890957852,8.12086826,3157.1,3157.0,0.1150608]
[1720890958079,9.21881065,3157.1,3157.0,0.1150608]
[1720890960838,8.12086826,3157.1,3157.0,0.1150608]
[1720890961035,9.21880057,3157.1,3157.0,0.1150608]
[1720890961239,8.12086826,3157.1,3157.0,0.1150608]
[1720890961439,9.21880034,3157.1,3157.0,0.1150608]
[1720890963579,9.21879739,3157.1,3157.0,0.1150608]
[1720890963760,9.2188022,3157.1,3157.0,0.1150608]
[1720890963947,5.93349776,3157.1,3157.0,0.1150608]
[1720890964141,4.97953207,3157.1,3157.0,0.1150608]
[1720890964396,5.32553207,3157.1,3157.0,0.1150608]
[1720890964549,8.32553207,3157.1,3157.0,0.1150608]
[1720890966564,7.29753207,3157.1,3157.0,0.1150608]
[1720890966756,6.00753207,3157.1,3157.0,0.1150608]
[1720890966954,3.88160257,3157.1,3157.0,0.1150608]
[1720890967201,5.53772948,3157.1,3157.0,0.1150608]
[1720890968292,4.97956922,3157.1,3157.0,0.1150608]
[1720890968857,1.97956922,3157.1,3157.0,0.1150608]
[1720890969790,1.42956922,3157.1,3157.0,0.1150608]
[1720890970802,1.42946508,3157.1,3157.0,0.1150608]
[1720890971577,1.42946508,3157.1,3157.0,2.5624608]
[1720890971896,1.42946508,3157.1,3157.0,2.81870688]
[1720890972516,1.42946508,3157.1,3157.0,3.84670688]
[1720890972694,0.33160257,3157.1,3157.0,3.84670688]
[1720890972895,1.42916736,3157.1,3157.0,3.84670688]
[1720890973618,1.42912197,3157.1,3157.0,3.84670688]
[1720890973832,0.33160257,3157.1,3157.0,3.84670688]
[1720890976450,1.42914082,3157.1,3157.0,3.84670688]